Cogmind - Beta 16.1 *** ADVENTURER MODE // 2026.03.26 @ 22:16:19 Player: Sharded of Serpulo Result: Self-destructed Performance ------------- Evolutions (1) 500 Regions Visited (2) 400 Robots Destroyed (18) 90 Value Destroyed (402) 402 Prototype IDs (0) 0 Alien Tech Used (0) 0 Bonus (0) 0 TOTAL SCORE: 1392 Bonus ------- None Cogmind --------- Core Integrity 190/400 Matter 300/300 Energy 125/125 System Corruption 0% Temperature Warning (319) Movement Flying (117) Ox1 Location -9/Materials Parts ------- > --- POWER (1) -------- Light Ion Engine > --- PROPULSION (4) --- Flight Unit Flight Unit > --- UTILITY (2) ------ Small Storage Unit > --- WEAPON (2) ------- Small Laser Particle Gun > --- INVENTORY (8) ---- Light Ion Engine Aluminum Leg Aluminum Leg Improved Heat Sink Peak State ------------ > --- POWER ------------ Light Ion Engine > --- PROPULSION ------- Flight Unit Flight Unit Flight Unit Flight Unit > --- UTILITY ---------- Small Storage Unit Weight Redist. System > --- WEAPON ----------- Small Laser Light Assault Rifle > --- INVENTORY -------- Ion Engine Aluminum Leg Aluminum Leg [Rating: 10] Favorites ----------- Power Ion Engine Engine Ion Engine Propulsion Flight Unit Leg Aluminum Leg Flight Unit Flight Unit Utility Small Storage Unit Device Weight Redist. System Storage Small Storage Unit Weapon Small Laser Energy Gun Small Laser Ballistic Gun Light Assault Rifle Build | -11 -10 -9 ------- Run | Yrd Mat Mat Slots Evolved 2 | . . 2 Power . | . . . Propulsion 2 | . . 2 Utility . | . . . Weapon . | . . . Parts Attached 16 | 6 . 10 Power 2 | 1 . 1 Engine 2 | 1 . 1 Core . | . . . Reactor . | . . . Propulsion 9 | 2 . 7 Treads . | . . . Leg 2 | 2 . . Wheel . | . . . Hover . | . . . Flight 7 | . . 7 Utility 2 | 1 . 1 Device 1 | . . 1 Storage 1 | 1 . . Processor . | . . . Hackware . | . . . Protection . | . . . Artifact . | . . . Weapon 3 | 2 . 1 Energy Gun 2 | 1 . 1 Energy Cannon . | . . . Ballistic Gun 1 | 1 . . Ballistic Cannon . | . . . Launcher . | . . . Special Weapon . | . . . Impact Weapon . | . . . Slashing Weapon . | . . . Piercing Weapon . | . . . Special Melee Weapon . | . . . Unidentified Prototypes . | . . . Parts Lost 6 | . . 6 Power . | . . . Propulsion 5 | . . 5 Utility . | . . . Weapon 1 | . . 1 Highest Loss Streak 4 | . . 4 To Critical Strikes . | . . . Average Backups 4 | 1 5 4 Power . | . 1 1 Propulsion 3 | 1 4 3 Utility . | . . . Weapon . | . . . Tool/Special . | . . . Unused Backups 6 | . 1 5 Power 2 | . 1 1 Propulsion 3 | . . 3 Utility 1 | . . 1 Weapon . | . . . Tool/Special . | . . . Average Slot Usage (%) 84 | . 85 84 Engine 12 | . 14 11 Leg 14 | . 28 . Flight 20 | . . 41 Storage 12 | . 14 11 Energy Gun 13 | . 14 12 Ballistic Gun 11 | . 14 8 Peak Build Rating 10 | 6 6 10 Average Rating 6 | 3 6 7 On Entrance 4 | . 6 6 Avg Prop Armor Cover (%) . | . . . Naked Turns . | . . . Heaviest Build 12 | 12 12 12 Greatest Support 20 | 20 20 16 Greatest Overweight (x) . | . . . Average Overweight (x) . | . . . Largest Inventory Capacity 8 | 8 8 8 Average Capacity 7 | 7 8 8 Most Carried 8 | 5 8 7 Average Carried 4 | 2 5 4 Final Capacity 8 | 8 8 8 Final Carried 8 | 3 8 4 Class Distribution -------------------- 55% | Mutant 39% | Scavenger-Sprinter 5% | Scavenger-Mutant Dominant Class ---------------- Mutant | -10/Materials Scavenger-Sprinter | -9/Materials Resources | -11 -10 -9 ----------- Run | Yrd Mat Mat Matter Collected 428 | 252 18 158 Remotely . | . . . Salvage Created 511 | . 133 378 Parts 34 | . 15 19 Haulers Intercepted . | . . . Recyclers Shooed 1 | . 1 . Parts Field Recycled . | . . . Retrieved Matter . | . . . Parts Self-Destructed . | . . . Prevented . | . . . Parts Restored . | . . . Kills | -11 -10 -9 ------- Run | Yrd Mat Mat Combat Hostiles Destroyed 17 | . 7 10 Guns 17 | . 7 10 Classes Destroyed 5 | . 2 3 Watcher 1 | . . 1 Swarmer 10 | . 6 4 Grunt 4 | . 1 3 Duelist 1 | . . 1 Sentry 2 | . . 2 Best Kill Streak 4 | . 3 4 Combat Bots Only 4 | . 3 4 Max Kills in Single Turn 1 | . 1 1 Gunslinging . | . . . Exploded . | . . . Melee . | . . . Uniques/NPCs Destroyed . | . . . Combat | -11 -10 -9 -------- Run | Yrd Mat Mat Hostile Shots Fired 97 | . 29 68 Missed 29 | . 10 19 Hits 68 | . 19 49 Melee 4 | . . 4 Projectile 64 | . 19 45 Critical Strikes 2 | . . 2 Damage Taken 621 | . 140 481 Core 243 | . 33 210 Absorbed by Shields . | . . . Ignored by Resistances 190 | . 43 147 Core Remaining (%) 93 | 100 86 . Volleys Fired 69 | . 18 51 Largest 2 | . 2 2 Hottest 105 | . 60 105 Shots Fired 124 | . 34 90 Gun 124 | . 34 90 Cannon . | . . . Launcher . | . . . Special . | . . . Kinetic 52 | . 18 34 Thermal 72 | . 16 56 Explosive . | . . . Electromagnetic . | . . . Robot Hit Streak 13 | . 7 13 Robot Miss Streak 2 | . 1 2 Penetration Max . | . . . Secondary Targets 2 | . . 2 Max Gunslinging Chain 1 | . . 1 Shots Hit Robots 93 | . 25 68 Core Hits 34 | . 9 25 Critical Kills . | . . . Critical Parts Destroyed . | . . . Critical Strikes . | . . . Melee Attacks . | . . . Impact . | . . . Slashing . | . . . Piercing . | . . . Sneak Attacks . | . . . Combat Hostiles . | . . . Follow-up Attacks . | . . . Damage Inflicted 953 | . 239 714 Guns 953 | . 239 714 Cannons . | . . . Explosions . | . . . Melee . | . . . Ramming . | . . . Kinetic 285 | . 112 173 Thermal 668 | . 127 541 Explosive . | . . . Electromagnetic . | . . . Impact . | . . . Slashing . | . . . Piercing . | . . . Highest Corruption 1 | . 1 . Average Corruption 1 | . 1 . Corruption Purged . | . . . Corruption Blocked . | . . . Effects 2 | . 2 . Message Errors 1 | . 1 . Alerts 1 | . 1 . Overload Shots . | . . . Overflow Damage . | . . . Projectiles . | . . . Explosions . | . . . Melee . | . . . Knockbacks . | . . . Impact . | . . . Kinetic . | . . . Secondary . | . . . Self-Inflicted Damage . | . . . Shots . | . . . Rammed . | . . . Targets Rammed . | . . . Kicked . | . . . Crushed . | . . . Highest Temperature 313 | . 64 313 Average Temperature 66 | . 22 78 Received Heat Transfer 291 | . 48 243 Siege Activations . | . . . Martial Activations . | . . . Shielding Activations . | . . . Robots Disrupted . | . . . Combat Hostiles . | . . . Robots Corrupted . | . . . Combat Hostiles . | . . . Parts Fried . | . . . Impact Corruptions . | . . . Robots Melted . | . . . Combat Hostiles . | . . . Parts Melted 4 | . . 4 Heat Transferred 1510 | . 275 1235 Parts Sabotaged . | . . . Parts Stolen . | . . . Parts Stripped . | . . . Power Chain Reactions . | . . . Alert | -11 -10 -9 ------- Run | Yrd Mat Mat Maximum Alert Level . | . . . Low Security (%) 100 | 100 100 100 Level 1 . | . . . Level 2 . | . . . Level 3 . | . . . Level 4 . | . . . Level 5 . | . . . High Security . | . . . Max Security . | . . . Peak Influence 166 | . 95 166 Initial 25 | . . 25 Average 72 | . 55 105 Influence Increases 484 | . 183 301 Destroy 0b10 Robot/C 340 | . 140 200 Destroy 0b10 Robot/NC 5 | . . 5 Destroy Leader 82 | . 30 52 Successful Hack 27 | . 13 14 Lose Combat Pursuer 30 | . . 30 Influence Decreases 348 | . 110 238 Entered New Map 48 | . . 48 Time Decay 240 | . 110 130 Lost Part 60 | . . 60 Squads Dispatched 2 | . 1 1 Investigation 1 | . 1 . Extermination . | . . . Reinforcement 1 | . . 1 Assault . | . . . Garrison . | . . . Intercept . | . . . Searches Triggered . | . . . Construction Impeded . | . . . Haulers Reinforced . | . . . Active Scanning Responses . | . . . Cargo Convoy Interrupts . | . . . Stealth | -11 -10 -9 --------- Run | Yrd Mat Mat Distress Signals 2 | . 1 1 Communications Jammed . | . . . Distress Signals . | . . . Times Spotted 27 | . 10 17 Peak Tracking Total 7 | . 3 7 Tactical Retreats 1 | . . 1 Traps | -11 -10 -9 ------- Run | Yrd Mat Mat Traps Triggered 2 | . 2 . Indirectly . | . . . Trap Hack Attempts . | . . . Triggered . | . . . Disarmed . | . . . Reprogrammed . | . . . Reused . | . . . Traps Extracted . | . . . Installed . | . . . Triggered . | . . . Machines | -11 -10 -9 ---------- Run | Yrd Mat Mat Machines Disabled . | . . . Max in Single Turn . | . . . Machines Repaired . | . . . Machines Dismantled . | . . . Machines Sabotaged . | . . . Overloaded Fab Kills . | . . . Hacking | -11 -10 -9 --------- Run | Yrd Mat Mat Machines Accessed 8 | . 3 5 Terminals 6 | . 2 4 Fabricators . | . . . Repair Stations . | . . . Recycling Units 2 | . 1 1 Scanalyzers . | . . . Garrison Access . | . . . Total Hacks 20 | . 7 13 Successful 9 | . 3 6 Failed 11 | . 4 7 Catastrophic 5 | . 2 3 Database Lockouts . | . . . Manual 17 | . 6 11 Terminals 17 | . 6 11 Fabricators . | . . . Repair Stations . | . . . Recycling Units 3 | . 1 2 Scanalyzers . | . . . Garrison Access . | . . . Terminal Hacks 6 | . 2 4 Part Schematic 1 | . . 1 Level Access Points 2 | . 1 1 Terminal Index 2 | . 1 1 Fabricator Index 1 | . . 1 Fabricator Hacks . | . . . Repair Station Hacks . | . . . Recycling Unit Hacks 3 | . 1 2 Report Inventory 2 | . 1 1 Retrieve Components 1 | . . 1 Scanalyzer . | . . . Garrison Access Hacks . | . . . Unauthorized Hacks . | . . . Terminals . | . . . Fabricators . | . . . Repair Stations . | . . . Recycling Units . | . . . Scanalyzers . | . . . Garrison Access . | . . . Data Cores Recovered . | . . . Used . | . . . Hacking Detections 6 | . 2 4 Full Trace Events 1 | . . 1 Feedback Events . | . . . Feedback Blocked . | . . . Robot Schematics Acquired . | . . . Robots Built . | . . . Authchips . | . . . Time . | . . . Total Robot Build Rating . | . . . Part Schematics Acquired 1 | . . 1 Parts Built . | . . . Authchips . | . . . Time . | . . . Total Part Build Rating . | . . . Part Studies Acquired . | . . . Parts Repaired . | . . . Time . | . . . Parts Recycled . | . . . Recycled Matter . | . . . Retrieved Matter . | . . . Retrieved Components 5 | . . 5 Parts Scanalyzed . | . . . Part Schematics Acquired . | . . . Parts Damaged . | . . . Bothacking | -11 -10 -9 ------------ Run | Yrd Mat Mat Used RIF Installer . | . . . Robots Hacked . | . . . Non-combat . | . . . Combat . | . . . Robot Hacks Applied . | . . . Relay Couplers Released . | . . . Fabnet Peak Effective % . | . . . Robots Rewired . | . . . Allies Hacked . | . . . Hacks Repelled . | . . . Allies | -11 -10 -9 -------- Run | Yrd Mat Mat Total Allies . | . . . Largest Group . | . . . Highest-Rated Group . | . . . Highest-Rated Ally . | . . . Total Orders . | . . . Ally Attacks . | . . . Total Damage . | . . . Kills . | . . . Allies Corrupted . | . . . Allies Melted . | . . . Intel | -11 -10 -9 ------- Run | Yrd Mat Mat Active Infowar (turns) . | . . . Robot Analysis Total . | . . . Derelict Logs Recovered . | . . . Drone Launches . | . . . Drone Recoveries . | . . . Exploration | -11 -10 -9 ------------- Run | Yrd Mat Mat Turns Passed 573 | 63 248 262 Spaces Moved 453 | 46 129 278 Core 9 | 9 . . Treads . | . . . Legs 166 | 37 129 . Wheels . | . . . Hover . | . . . Flight 278 | . . 278 Fastest Speed 31 | 50 120 31 Average Speed 64 | 106 120 31 Slowest Speed 120 | 120 120 34 Overloaded Moves . | . . . Propulsion Burnouts . | . . . Robots Hopped 4 | . . 4 Potential Cave-ins . | . . . Cave-ins Triggered . | . . . Exploration Rate (%) 22 | 3 35 30 Regions Visited 2 Branch Regions . Pre-discovered Areas . | . . . Known Exits Taken 1 | . 1 . Unknown Exits Taken 1 | 1 . . Scrap Searched . | . . . Spaces Dug . | . . . Terrain Destroyed . | . . . Melee . | . . . Projectile . | . . . AOE . | . . . Terrain Rammed . | . . . Walls Destroyed . | . . . Machines Disabled . | . . . Actions | -11 -10 -9 --------- Run | Yrd Mat Mat Total 617 | 60 192 365 Wait 54 | . 39 15 Move 443 | 45 128 270 Hop 4 | . . 4 Pick Up 22 | 9 6 7 Fast Attach . | . . . Attach 13 | 6 . 7 Detach . | . . . Swap 6 | . . 6 Drop 6 | . 1 5 Fire 69 | . 18 51 Melee . | . . . Ram . | . . . Kick . | . . . Crush . | . . . Escape Stasis . | . . . Rewire . | . . . Trap . | . . . Miscellaneous . | . . . Route ------- -11/Scrapyard -10/Materials (discovered 3 exits: *Mat x3) -9/Materials (discovered 4 exits: Mat x3 / [*Min]) History --------- Turn | Location | Event 6 | -11/Scrapyard | Discovered new exit (range 16) 64 | -11/Scrapyard | Entered Materials 249 | -10/Materials | Discovered new exit (range 9) 295 | -10/Materials | Identified exit to Materials 312 | -10/Materials | Build established: Mutant 312 | -10/Materials | Entered another Materials area 312 | -9/Materials | Evolved 2 slots: Propulsion x2 434 | -9/Materials | Discovered new exit (range 14) 447 | -9/Materials | Identified exit to Materials 562 | -9/Materials | Core integrity fell below 50% 566 | -9/Materials | Lost 4 parts (3n1w) 574 | -9/Materials | Self-destructed Last Messages --------------- K-01 Serf collects debris. G-47 Trooper destroyed. K-01 Serf collects debris. Acquired 20 matter. K-01 Serf collects debris. Sml. Laser melted. G-34 Mercenary destroyed. Lgt. Assault Rifle destroyed. G-34 Mercenary destroyed. Flight Unit destroyed. Acquired 20 matter. Acquired Particle Gun. Acquired Imp. Heat Sink. K-01 Serf cleans the Electrolysis Chamber. Melee Analysis Suite melted. Katana melted. L-31 Rogue destroyed. Acquired 10 matter. K-01 Serf cleans the Electrolysis Chamber. Flight Unit destroyed. Map ----- +----------------------------------------------------+ | ??????????????????????????# #????# # | | ??????????????????????????# #????# # | | ??????????????????????????# #????# ! + | | ???????????????############ ###### # #### | | ???????????????# ## #"T"######### #??? | | ???????????????# # #??? | | ???????????????# """ # #??? | | ???????????????# [ ! """ + T +? | | ???????????????# *[ """ # !% # | | ???????????????# "Y" """ # ]] ####### #### | | ???????????????# """ """ # ] #????? ?? | | ???????????????# # #????? ""# | | ???????????????########### #????# ||# | | ?????????????????????????# #????# < ""# | | ?????????????????????????# #????# !!# | | ?????????????????????????# ### #????? ""# | | ?????????????????????????# #?# #????? "# | | ??????????????????????######+#### #?????# ###? | | ??????????????????????# ## #?????? #??? | | ??????????????????????# """ =## +?????? #??? | | ????????????????####### """ #? # ?????? ????? | | ###+########## # """ #?????????????????? | | ! #k #?????????????????? | | !% %g= """ #?????????????????? | | %% * # """ #?????????????????? | | ????#########/### # @""" #?????????????????? | | ?????????# [*= ## ## #?????????????????? | | ?????????# """ ## ###########?????????????????? | | ?????????# """ ## #???????????????????????????? | | ?????????# """ ## ??????????????????????????? | | ?????????# """ ## ?????????????????????????? | | ?????????# ## ????????????????????????? | | ?????????######### #####???????????????????????? | | ?????????????????# #???????????????????????????? | | ?????????????????# #???????????????????????????? | | ?????????????????# #???????????????????????????? | | ?????????????????# #???????????????????????????? | | ?????????????????# #???????????????????????????? | | ?????????????????? #???????????????????????????? | | ?????????????????? ????????????????????????????? | | ?????????????????????????????????????????????????? | | ?????????????????????????????????????????????????? | | ?????????????????????????????????????????????????? | | ?????????????????????????????????????????????????? | | ?????????????????????????????????????????????????? | | ?????????????????????????????????????????????????? | | ?????????????????????????????????????????????????? | | ?????????????????????????????????????????????????? | | ?